Cogmind - Beta 16 --- EXPLORER MODE // 2026.01.29 @ 13:06:38 Player: K.K.Y. Result: Destroyed by LS-7QX(R) with Subdweller Machine Gun Performance ------------- Evolutions (0) 0 Regions Visited (3) 600 Robots Destroyed (45) 225 Value Destroyed (1149) 1149 Prototype IDs (12) 240 Alien Tech Used (0) 0 Bonus (-64) -64 TOTAL SCORE: 2150 Bonus ------- Follower Combat Kills 120 Friendly Fire -184 Cogmind --------- Core Integrity 0/250 Matter 300/300 Energy 99/100 System Corruption 0% Temperature Cool (0) Movement Treading (260) Ox1 Location -10/Subcaves Parts ------- > --- POWER (1) -------- (None) > --- PROPULSION (2) --- Spiked Treads > --- UTILITY (3) ------ Improved Heat Sink Medium Storage Unit Makeshift Light Armor Plating > --- WEAPON (2) ------- Barrage Gun Makeshift Axe > --- INVENTORY (10) --- Light Nuclear Core Light Nuclear Core Improved Heat Sink Improved Heat Sink Machine Analyzer Improved Terrain Scanner Makeshift System Shield Datajack Multitool Makeshift Hammer Peak State ------------ > --- POWER ------------ Light Nuclear Core > --- PROPULSION ------- Spiked Treads > --- UTILITY ---------- Improved Heat Sink Medium Storage Unit Makeshift Light Armor Plating > --- WEAPON ----------- Barrage Gun Makeshift Axe > --- INVENTORY -------- Light Nuclear Core Light Nuclear Core Improved Heat Sink Improved Heat Sink Machine Analyzer Improved Terrain Scanner Makeshift System Shield Beam Cannon Datajack Multitool [Rating: 22] Favorites ----------- Power Light Nuclear Core Engine Ion Engine Power Core Light Nuclear Core Propulsion Light Treads Treads Light Treads Utility Medium Storage Unit Device Structural Scanner Storage Medium Storage Unit Protection Makeshift Light Armor Plating Weapon Beam Cannon Energy Gun Particle Gun Energy Cannon Beam Cannon Ballistic Gun Barrage Gun Special Weapon Mining Laser Slashing Weapon Makeshift Axe Build | -11 -10 -10 -10 ------- Run | Yrd Mat Min Sub Slots Evolved 1 | . 1 . . Power . | . . . . Propulsion . | . . . . Utility 1 | . 1 . . Weapon . | . . . . Parts Attached 24 | 7 3 6 8 Power 2 | 1 . 1 . Engine 1 | 1 . . . Core 1 | . . 1 . Reactor . | . . . . Propulsion 6 | 2 . 3 1 Treads 6 | 2 . 3 1 Leg . | . . . . Wheel . | . . . . Hover . | . . . . Flight . | . . . . Utility 7 | 2 1 2 2 Device 5 | 1 1 2 1 Storage 1 | 1 . . . Processor . | . . . . Hackware . | . . . . Protection 1 | . . . 1 Artifact . | . . . . Weapon 9 | 2 2 . 5 Energy Gun 4 | 2 . . 2 Energy Cannon 2 | . 2 . . Ballistic Gun 1 | . . . 1 Ballistic Cannon . | . . . . Launcher . | . . . . Special Weapon 1 | . . . 1 Impact Weapon . | . . . . Slashing Weapon 1 | . . . 1 Piercing Weapon . | . . . . Special Melee Weapon . | . . . . Unidentified Prototypes . | . . . . Parts Lost 6 | . . . 6 Power 1 | . . . 1 Propulsion 1 | . . . 1 Utility 2 | . . . 2 Weapon 2 | . . . 2 Highest Loss Streak 3 | . . . 3 To Critical Strikes . | . . . . Average Backups 8 | 2 6 9 9 Power 1 | . . 1 2 Propulsion . | . 2 . . Utility 4 | 1 3 5 4 Weapon 1 | . 1 1 1 Tool/Special . | . . . . Unused Backups 10 | . . . 10 Power 2 | . . . 2 Propulsion . | . . . . Utility 5 | . . . 5 Weapon 1 | . . . 1 Tool/Special 2 | . . . 2 Average Slot Usage (%) 94 | . 95 100 91 Engine 3 | . 12 2 . Core 8 | . . 9 11 Treads 23 | . 25 25 21 Device 20 | . 20 25 18 Storage 12 | . 12 12 12 Energy Gun 3 | . 5 . 4 Energy Cannon 17 | . 19 25 11 Special Weapon 2 | . . . 5 Peak Build Rating 22 | 7 9 12 22 Average Rating 12 | 5 8 11 14 On Entrance 7 | . 7 9 12 Avg Prop Armor Cover (%) . | . . . . Naked Turns . | . . . . Heaviest Build 26 | 20 23 23 26 Greatest Support 40 | 40 40 40 40 Greatest Overweight (x) 1 | . . . 1 Average Overweight (x) . | . . . . Largest Inventory Capacity 10 | 10 10 10 10 Average Capacity 9 | 9 10 10 10 Most Carried 10 | 5 10 10 10 Average Carried 8 | 2 6 9 9 Final Capacity 10 | 10 10 10 10 Final Carried 10 | 3 10 10 10 Class Distribution -------------------- 100% | Hacker-Mutant Dominant Class ---------------- Hacker-Mutant | -10/Materials Hacker-Mutant | -10/Mines Hacker-Mutant | -10/Subcaves Resources | -11 -10 -10 -10 ----------- Run | Yrd Mat Min Sub Matter Collected 520 | 270 30 60 160 Remotely . | . . . . Salvage Created 1665 | 192 698 219 556 Parts 91 | 13 37 9 32 Haulers Intercepted 1 | . 1 . . Recyclers Shooed . | . . . . Parts Field Recycled . | . . . . Retrieved Matter . | . . . . Parts Self-Destructed . | . . . . Prevented . | . . . . Parts Restored . | . . . . Kills | -11 -10 -10 -10 ------- Run | Yrd Mat Min Sub Combat Hostiles Destroyed 29 | . 10 6 13 Melee 1 | . . . 1 Guns 2 | . 1 . 1 Cannons 24 | . 8 5 11 AOE 1 | . 1 . . Classes Destroyed 11 | 2 7 . 2 Worker 1 | . 1 . . Builder 2 | . 2 . . Tunneler 5 | 4 . 1 . Hauler 1 | . 1 . . Recycler 3 | 1 2 . . Mechanic 1 | . 1 . . Watcher 3 | . 3 . . Swarmer 6 | . 4 2 . Grunt 10 | . 6 4 . Artisan 3 | . . . 3 Subdweller 13 | . . . 13 Best Kill Streak 5 | 3 5 3 3 Combat Bots Only 3 | . 2 2 3 Max Kills in Single Turn 2 | 1 2 2 1 Gunslinging . | . . . . Exploded 1 | . 1 . . Melee 1 | . . . 1 Uniques/NPCs Destroyed . | . . . . Combat | -11 -10 -10 -10 -------- Run | Yrd Mat Min Sub Hostile Shots Fired 160 | . 34 31 95 Missed 44 | . 14 6 24 Hits 116 | . 20 25 71 Projectile 116 | . 20 25 71 Critical Strikes 6 | . . 1 5 Damage Taken 1337 | . 134 222 981 Core 261 | . 14 40 207 Absorbed by Shields . | . . . . Ignored by Resistances 806 | . 87 136 583 Core Remaining (%) 100 | 100 . . . Volleys Fired 166 | 10 37 18 101 Largest 2 | 2 2 2 2 Hottest 165 | 80 120 120 165 Shots Fired 329 | 20 74 36 199 Gun 49 | 20 8 . 21 Cannon 220 | . 66 36 118 Launcher . | . . . . Special 60 | . . . 60 Kinetic . | . . . . Thermal 301 | . 66 36 199 Explosive . | . . . . Electromagnetic 28 | 20 8 . . Robot Hit Streak 42 | 6 20 15 42 Robot Miss Streak 2 | 1 2 1 1 Penetration Max . | . . . . Secondary Targets 1 | . 1 . . Max Gunslinging Chain 1 | . 1 . . Shots Hit Robots 186 | 13 54 31 88 Core Hits 62 | 6 22 9 25 Critical Kills . | . . . . Critical Parts Destroyed . | . . . . Critical Strikes 1 | . 1 . . Corrupt 1 | . 1 . . Melee Attacks 22 | . . . 22 Impact . | . . . . Slashing 22 | . . . 22 Piercing . | . . . . Sneak Attacks . | . . . . Combat Hostiles . | . . . . Follow-up Attacks . | . . . . Damage Inflicted 3281 | 176 1002 560 1543 Guns 544 | 176 75 . 293 Cannons 2368 | . 893 560 915 Explosions 34 | . 34 . . Melee 263 | . . . 263 Ramming . | . . . . Kinetic . | . . . . Thermal 2767 | . 927 560 1280 Explosive . | . . . . Electromagnetic 251 | 176 75 . . Impact . | . . . . Slashing 263 | . . . 263 Piercing . | . . . . Highest Corruption . | . . . . Average Corruption . | . . . . Corruption Purged . | . . . . Corruption Blocked . | . . . . Overload Shots . | . . . . Overflow Damage 15 | . 5 . 10 Projectiles 15 | . 5 . 10 Explosions . | . . . . Melee . | . . . . Knockbacks . | . . . . Impact . | . . . . Kinetic . | . . . . Secondary . | . . . . Self-Inflicted Damage . | . . . . Shots . | . . . . Rammed . | . . . . Targets Rammed . | . . . . Kicked . | . . . . Crushed . | . . . . Highest Temperature 402 | 54 402 382 178 Average Temperature 105 | 26 126 139 26 Received Heat Transfer 863 | . 114 195 554 Effects 8 | . 4 4 . Shutdowns 2 | . 1 1 . Energy Bleed 4 | . 3 1 . Interference 2 | . . 2 . Siege Activations . | . . . . Martial Activations . | . . . . Shielding Activations . | . . . . Robots Disrupted . | . . . . Combat Hostiles . | . . . . Robots Corrupted . | . . . . Combat Hostiles . | . . . . Parts Fried 1 | 1 . . . Impact Corruptions . | . . . . Robots Melted 1 | . . 1 . Combat Hostiles 1 | . . 1 . Parts Melted 10 | . 4 1 5 Heat Transferred 5898 | . 1937 1184 2777 Parts Sabotaged . | . . . . Parts Stolen . | . . . . Parts Stripped . | . . . . Power Chain Reactions 1 | . 1 . . Alert | -11 -10 -10 -10 ------- Run | Yrd Mat Min Sub Maximum Alert Level . | . . . . Low Security (%) 100 | 100 100 100 . Level 1 . | . . . . Level 2 . | . . . . Level 3 . | . . . . Level 4 . | . . . . Level 5 . | . . . . High Security . | . . . . Max Security . | . . . . Peak Influence 103 | 15 51 103 . Initial . | . . . . Average 9 | 2 8 12 . Influence Increases 641 | 25 351 265 . Destroy 0b10 Robot/C 400 | . 200 200 . Destroy 0b10 Robot/NC 80 | 25 50 5 . Destroy Leader 108 | . 58 50 . Allied During Kill 6 | . . 6 . Successful Hack 10 | . 10 . . Disable Machine 20 | . 16 4 . Destroy Structure 2 | . 2 . . Lose Combat Pursuer 15 | . 15 . . Influence Decreases 641 | 25 351 265 . Time Decay 641 | 25 351 265 . Squads Dispatched 1 | . 1 . . Investigation 1 | . 1 . . Extermination . | . . . . Reinforcement . | . . . . Assault . | . . . . Garrison . | . . . . Intercept . | . . . . Searches Triggered . | . . . . Construction Impeded . | . . . . Haulers Reinforced . | . . . . Active Scanning Responses . | . . . . Cargo Convoy Interrupts . | . . . . Stealth | -11 -10 -10 -10 --------- Run | Yrd Mat Min Sub Distress Signals . | . . . . Communications Jammed . | . . . . Distress Signals . | . . . . Times Spotted 41 | . 16 10 15 Peak Tracking Total 4 | . 2 4 3 Tactical Retreats 1 | . 1 . . Traps | -11 -10 -10 -10 ------- Run | Yrd Mat Min Sub Traps Triggered . | . . . . Indirectly . | . . . . Trap Hack Attempts . | . . . . Triggered . | . . . . Disarmed 4 | . 4 . . Reprogrammed . | . . . . Reused . | . . . . Traps Extracted . | . . . . Installed . | . . . . Triggered . | . . . . Machines | -11 -10 -10 -10 ---------- Run | Yrd Mat Min Sub Machines Disabled 6 | . 4 1 1 Max in Single Turn 2 | . 2 1 1 Machines Repaired . | . . . . Machines Dismantled . | . . . . Machines Sabotaged . | . . . . Overloaded Fab Kills . | . . . . Hacking | -11 -10 -10 -10 --------- Run | Yrd Mat Min Sub Machines Accessed 13 | . 9 . 4 Terminals 7 | . 7 . . Fabricators . | . . . . Repair Stations . | . . . . Recycling Units 2 | . 2 . . Scanalyzers . | . . . . Garrison Access . | . . . . Total Hacks 20 | . 12 . 8 Successful 19 | . 11 . 8 Failed 1 | . 1 . . Catastrophic . | . . . . Database Lockouts . | . . . . Manual 6 | . 6 . . Terminals 10 | . 10 . . Fabricators . | . . . . Repair Stations . | . . . . Recycling Units 2 | . 2 . . Scanalyzers . | . . . . Garrison Access . | . . . . Terminal Hacks 11 | . 3 . 8 Record 5 | . . . 5 Robot Analysis 1 | . 1 . . Open Door 1 | . . . 1 Locate Traps 1 | . 1 . . Disarm Traps 1 | . 1 . . Proto ID Catalog 1 | . . . 1 Release Object 1 | . . . 1 Fabricator Hacks . | . . . . Repair Station Hacks . | . . . . Recycling Unit Hacks 2 | . 2 . . Retrieve Components 2 | . 2 . . Scanalyzer . | . . . . Garrison Access Hacks . | . . . . Unauthorized Hacks 6 | . 6 . . Terminals 6 | . 6 . . Botnet 6 | . 6 . . Fabricators . | . . . . Repair Stations . | . . . . Recycling Units . | . . . . Scanalyzers . | . . . . Garrison Access . | . . . . Data Cores Recovered . | . . . . Used . | . . . . Hacking Detections 3 | . 3 . . Full Trace Events 1 | . 1 . . Feedback Events . | . . . . Feedback Blocked . | . . . . Robot Schematics Acquired . | . . . . Robots Built . | . . . . Authchips . | . . . . Time . | . . . . Total Robot Build Rating . | . . . . Part Schematics Acquired . | . . . . Parts Built . | . . . . Authchips . | . . . . Time . | . . . . Total Part Build Rating . | . . . . Part Studies Acquired . | . . . . Parts Repaired . | . . . . Time . | . . . . Parts Recycled . | . . . . Recycled Matter . | . . . . Retrieved Matter . | . . . . Retrieved Components 14 | . 14 . . Parts Scanalyzed . | . . . . Part Schematics Acquired . | . . . . Parts Damaged . | . . . . Bothacking | -11 -10 -10 -10 ------------ Run | Yrd Mat Min Sub Used RIF Installer . | . . . . Robots Hacked . | . . . . Non-combat . | . . . . Combat . | . . . . Robot Hacks Applied . | . . . . Relay Couplers Released . | . . . . Fabnet Peak Effective % . | . . . . Robots Rewired . | . . . . Allies Hacked . | . . . . Hacks Repelled . | . . . . Allies | -11 -10 -10 -10 -------- Run | Yrd Mat Min Sub Total Allies 3 | . . 3 . Largest Group 3 | . . 3 2 Highest-Rated Group 40 | . . 40 24 Highest-Rated Ally 16 | . . 16 16 Total Orders . | . . . . Ally Attacks 53 | . . 28 25 Total Damage 471 | . . 297 174 Kills 5 | . . 5 . Allies Corrupted . | . . . . Allies Melted . | . . . . Intel | -11 -10 -10 -10 ------- Run | Yrd Mat Min Sub Active Infowar (turns) 3810 | 103 1142 1084 1481 Sensors 2482 | 103 1142 1084 153 Structural 3290 | . 742 1067 1481 Robot Analysis Total 1 | . 1 . . Derelict Logs Recovered . | . . . . Drone Launches . | . . . . Drone Recoveries . | . . . . Exploration | -11 -10 -10 -10 ------------- Run | Yrd Mat Min Sub Turns Passed 4479 | 115 1142 1084 2138 Spaces Moved 2149 | 51 626 610 862 Core 14 | 14 . . . Treads 2135 | 37 626 610 862 Legs . | . . . . Wheels . | . . . . Hover . | . . . . Flight . | . . . . Fastest Speed 50 | 50 160 160 160 Average Speed 169 | 129 160 160 186 Slowest Speed 260 | 160 160 160 260 Overloaded Moves . | . . . . Propulsion Burnouts . | . . . . Robots Hopped . | . . . . Potential Cave-ins 2 | . . . 2 Cave-ins Triggered . | . . . . Exploration Rate (%) 64 | 4 99 99 54 Regions Visited 3 Branch Regions 2 Pre-discovered Areas 2 | . . 1 1 Known Exits Taken 3 | 1 1 1 . Unknown Exits Taken . | . . . . Scrap Searched 7 | . . 1 6 Spaces Dug 10 | . . . 10 Terrain Destroyed 10 | . . . 10 Melee . | . . . . Projectile 10 | . . . 10 AOE . | . . . . Terrain Rammed . | . . . . Walls Destroyed . | . . . . Machines Disabled . | . . . . Actions | -11 -10 -10 -10 --------- Run | Yrd Mat Min Sub Total 2501 | 78 693 683 1047 Wait 96 | 4 16 39 37 Move 2146 | 50 625 609 862 Hop . | . . . . Pick Up 25 | 7 10 5 3 Fast Attach 5 | 3 . . 2 Attach 7 | 4 1 . 2 Detach . | . . . . Swap 22 | . 2 6 14 Drop 12 | . 2 6 4 Fire 166 | 10 37 18 101 Melee 22 | . . . 22 Ram . | . . . . Kick . | . . . . Crush . | . . . . Escape Stasis . | . . . . Rewire . | . . . . Trap . | . . . . Miscellaneous . | . . . . Route ------- -11/Scrapyard -10/Materials (discovered 5 exits: *Mat x3 / *Min / Sub) -10/Mines (discovered 3 exits: *Mat x2 / *Sub) -10/Subcaves (discovered 4 exits: *Mat x2 / Rec / [*Scr]) History --------- Turn | Location | Event 10 | -11/Scrapyard | Identified exit to Materials 10 | -11/Scrapyard | Discovered exit to Materials (range 16) 116 | -11/Scrapyard | Entered Materials 116 | -10/Materials | Evolved 1 slot: Utility x1 150 | -10/Materials | Identified exit to Mines 150 | -10/Materials | Discovered exit to Mines (range 10) 307 | -10/Materials | Build established: Hacker-Mutant 313 | -10/Materials | Identified exit to Materials 313 | -10/Materials | Discovered exit to Materials (range 16) 790 | -10/Materials | Discovered exit to Materials (range 16) 1079 | -10/Materials | Identified exit to Subcaves 1079 | -10/Materials | Discovered exit to Subcaves (range 9) 1090 | -10/Materials | Discovered exit to Materials (range 12) 1258 | -10/Materials | Entered Mines 1262 | -10/Mines | Assisted by bots powering up and referring to "LRC-V3" 1338 | -10/Mines | Discovered exit to Subcaves (range 8) 1723 | -10/Mines | Received a Rocket Launcher from a helpful Derelict 1754 | -10/Mines | Learned location of Storage (-7) 1759 | -10/Mines | Discovered exit to Materials (range 5) 1789 | -10/Mines | Discovered exit to Materials (range 10) 1828 | -10/Mines | A weapon hastily lodged in a ceiling crevice suddenly fell to the ground 2342 | -10/Mines | Entered Subcaves 2342 | -10/Subcaves | Accompanied by 2 allies 2343 | -10/Subcaves | Approached by a straggling Scientist 2954 | -10/Subcaves | Shifting Twisted Machinery released Sub. Power Source 2955 | -10/Subcaves | Shifting Twisted Machinery released Sub. Power Source 2967 | -10/Subcaves | Scientist uncovered a shortcut to Scraptown 2977 | -10/Subcaves | Identified exit to Materials 2977 | -10/Subcaves | Discovered exit to Materials (range 6) 3034 | -10/Subcaves | Visited 4L-MR0's lab 3171 | -10/Subcaves | Discovered exit to Materials (range 10) 3261 | -10/Subcaves | Visited Clippyterm 3266 | -10/Subcaves | Identified exit to Recycling 3266 | -10/Subcaves | Learned location of Deep Caves (-6) 3293 | -10/Subcaves | A swath of the cavern ceiling suddenly collapsed 3508 | -10/Subcaves | Ambushed by Subdweller buried in earth 3680 | -10/Subcaves | Core integrity fell below 50% 3820 | -10/Subcaves | Core integrity fell below 20% 3854 | -10/Subcaves | Lost 3 parts (1n1u1w) 4013 | -10/Subcaves | Shifting Twisted Machinery released Sub. Machine Gun 4259 | -10/Subcaves | Disturbed a concealed Subdweller 4391 | -10/Subcaves | Shifting Twisted Machinery released Sub. Machine Gun 4480 | -10/Subcaves | Destroyed by LS-7QX(R) with Subdweller Machine Gun Last Messages --------------- 04256_ Acquired 10 matter. 04259_ GF-GAB(R) angrily emerges from the Twisted Machinery. 04266_ GF-GAB(R) destroyed. 04288_ Searching scrap... 04288_ Found Barrage Gun. 04288_ Found Mak. Light Armor Plating. 04288_ Found 48 Matter. 04296_ Searching scrap... 04296_ Found Mak. Hammer. 04296_ Found 59 Matter. 04307_ Acquired Mak. Light Armor Plating. 04311_ Acquired Barrage Gun. 04312_ Acquired 20 matter. 04317_ Dropped Beam Cannon. 04318_ Acquired Mak. Hammer. Sub. Machine Gun falls loose from the Twisted Machinery. 04472_ Lgt. Nuclear Core destroyed. 04479_ Destroyed Scrap Shield. Map ----- +----------------------------------------------------+ | ###????????# ##??????????????????????? | | #???????### #??????????????????????? | | #????##### ##??????????????????????? | | ##???## ##??????????????????????? | | ##????# #### #??????????????????????? | | #?????# ## # ##??# #??????????????????????? | | #????## ###### ##??## ##??????????????????????? | | ?##### ##??## ##??###???????????????????????? | | ## #???## ##???????????????????????????? | | #????## #???????????????????????????? | | ## #?????## #???????????????????????????? | | #### " ##?##### #???????????????????????????? | | #??# ""##### "### ###?????????????????????????? | | ???## """## ##"" # #?????????????????????????? | | ?######""" """ " ##????????????????????????? | | ?# #### " " """ ##???????????????????????? | | ## ## [ # # """"" #???????????????????????? | | # ### ""### ##??##??????????????????? | | # "" ### ""#?# ### ###????????????????? | | ##]# ####" "##?#" #????????????????? | | ###= # # """ "####" "##????????????????? | | #% %%# """ " ##" # ""#????????????????? | | #&&[=# # [ ##### ## ##? "##???????????????? | | # %[## # ## ##???### #?? "" ???????????????? | | ##### "########??????## # """""???????????????? | | "#??????????????#R @ " """???????????????? | | ########?????????????# R """""???????????????? | | ?????????????????????##### # """???????????????? | | ??????????????????????????## " ??????????????? | | ????????????????????????????? ## ?????????????? | | ??????????????????????????????#?? ????????????? | | ?????????????????????????????????? ???????????? | | ????????????????????????????????????# #??????????? | | ?????????????????????????????????????????????????? | | ?????????????????????????????????????????????????? | | ?????????????????????????????????????????????????? | | ?????????????????????????????????????????????????? | | ?????????????????????????????????????????????????? | | ?????????????????????????????????????????????????? | | ?????????????????????????????????????????????????? | | ?????????????????????????????????????????????????? | | ?????????????????????????????????????????????????? | | ?????????????????????????????????????????????????? | | ?????????????????????????????????????????????????? | | ?????????????????????????????????????????????????? | | ?????????????????????????????????????????????????? | | ?????????????????????????????????????????????????? | | ?????????????????????????????????????????????????? | | ?????????????????????????????????????????????????? | | ?????????????????????????????????????????????????? | +----------------------------------------------------+ Best States ------------- Heat Dissipation 39 Energy Generation 14 Energy Capacity 250 Matter Stores 300 Matter Capacity 300 Sight Range 16 Robot Scan Range 14 Terrain Scan Density 10 Armor Coverage 100 Resistance: KI 35 Resistance: TH 35 Resistance: EX 35 Resistance: EM 35 Resistance: I 35 Resistance: S 35 Resistance: P 35 Evasion (%) 50 Recoil Reduction 2 Offensive Hacking 20 Item Schematics ----------------- None Robot Schematics ------------------ None Fabricated ------------ Nothing Repaired ---------- Nothing Studied --------- None Alien Tech Used ----------------- None Achievements -------------- None Challenges ------------ None Game ------ Seed UtilityTripodFrame Manual? 0 Play Time 00:23:22 Cumulative 322.8 hours Start 2026.01.29 @ 12:50:44 End 2026.01.29 @ 13:06:38 Sessions 1 Manual Loads 0 Difficulty Explorer Special Mode None Game No. 506 Rogue 0 Adventurer 0 Explorer 506 Win Type - Total 0 Types 0/0/0/0/0/0/0/0/0/0 Lore% 77 Gallery% 70 Achievement% 56 Wizard Run 0 Options --------- Layout 1 ASCII 0 Keyboard 0 Movement Mouse Keybinds 1 Fullscreen 1 Font 24/Smallcaps Map View 50x35 Zoom Use 0% Tactical HUD 1 Map Filters NONE Filters NONE Steam 1 RUN: df46fd1c-7bc1-4e68-b789-b7da13b09396